fUSD/lending_fUSD_20240113
["ID","MTS","AMOUNT","RATE_DAILY","PERIOD"]
[311511640,1705170650359,-1415.85873069,0.00022652,2]
[311511641,1705170650368,-1770.80615665,0.00022652,2]
[311511642,1705170650379,-202.34728046,0.00022652,2]
[311511643,1705170650389,-162.16116158,0.00022652,2]
[311511644,1705170650400,-166.84954962,0.00022652,2]
[311511645,1705170650411,-155.49520958,0.00022652,2]
[311511646,1705170650422,-161.21857687,0.00022652,2]
[311511647,1705170650433,-1135.4047582,0.00022652,2]
[311511648,1705170650444,-17153.01667011,0.00022652,2]
[311511649,1705170650454,-278.31410173,0.00022652,2]
[311511650,1705170650465,-333.65536306,0.00022652,2]
[311511651,1705170650476,-201.47626641,0.00022652,2]
[311511652,1705170650487,-172.16798281,0.00022652,2]
[311511653,1705170650497,-250.5942067,0.00022652,2]
[311511654,1705170650507,-264.62708339,0.00022652,2]
[311511655,1705170650518,-537.06141587,0.00022652,2]
[311511656,1705170650529,-327.81139673,0.00022652,2]
[311511657,1705170650540,-190.74513272,0.00022652,2]
[311511658,1705170650550,-687.23183511,0.00022652,2]
[311511659,1705170650560,-202.95473276,0.00022652,2]
[311511660,1705170650569,-244.37624474,0.00022652,2]
[311511661,1705170650579,-720.44889323,0.00022652,2]
[311511662,1705170650589,-527.96749952,0.00022652,2]
[311511663,1705170650599,-946.71100356,0.00022652,2]
[311511664,1705170650608,-230.10293376,0.00022652,2]
[311511665,1705170650618,-322.59730548,0.00022653,2]
[311511666,1705170650628,-1344.66,0.00022654,2]
[311511667,1705170650638,-568.64,0.00022654,2]
[311511668,1705170650648,-501.66,0.00022654,2]
[311511669,1705170650657,-997.96,0.00022654,2]
[311511670,1705170650667,-515.98,0.00022654,2]
[311511671,1705170650677,-500.0,0.00022654,2]
[311511672,1705170650688,-722.81,0.00022654,2]
[311511673,1705170650697,-13367.11629262,0.00022655,2]
[311511674,1705170650707,-150.0,0.00022659,2]
[311511675,1705170650717,-150.0,0.00022667,2]
[311511676,1705170650728,-7423.7523428,0.00022668,3]
[311511677,1705170650737,-1646.86032977,0.00022669,2]
[311511678,1705170650747,-152.71432783,0.00022673,2]
[311511679,1705170650757,-562.64,0.00022681,2]
[311511680,1705170650766,-13367.11629262,0.00022682,2]
[311511681,1705170650776,-553.57761896,0.00022684,2]
[311511682,1705170650786,-155.4,0.00022686,2]
[311511683,1705170650797,-150.0,0.00022687,2]
[311511684,1705170650807,-285.76953649,0.000227,2]
[311511685,1705170650816,-150.0,0.000227,2]
[311511686,1705170650826,-152.63,0.00022702,2]
[311511687,1705170650835,-13367.11629262,0.00022709,2]
[311511688,1705170650845,-150.0,0.00022713,2]
[311511689,1705170650854,-200.0,0.00022717,2]
[311511690,1705170650864,-150.0,0.00022721,2]
[311511691,1705170650873,-150.0,0.00022721,2]
[311511692,1705170650883,-150.0,0.00022728,2]
[311511693,1705170650893,-13367.11629262,0.00022736,2]
[311511694,1705170650902,-1226.42,0.00022739,2]
[311511695,1705170650911,-300.0,0.00022754,2]
[311511696,1705170650922,-300.0,0.00022754,2]
[311511697,1705170650931,-268.63755361,0.00022754,2]
[311511698,1705170650941,-1500.0,0.00022756,2]
[311511699,1705170650950,-155.19,0.00022757,2]
[311511700,1705170650960,-151.33100347,0.0002276,2]
[311511701,1705170650970,-150.0,0.0002276,2]
[311511702,1705170650981,-13367.11629262,0.00022764,2]
[311511703,1705170650995,-150.0,0.00022768,2]
[311511704,1705170651005,-12628.413093,0.0002277,2]
[311511705,1705170651016,-1333.0,0.00022774,2]
[311511706,1705170651027,-380.77,0.00022777,2]
[311511707,1705170651037,-150.0,0.00022781,2]
[311511708,1705170651050,-150.0,0.00022782,2]
[311511709,1705170651062,-1646.86032977,0.00022785,2]
[311511710,1705170651074,-150.0,0.00022788,2]
[311511711,1705170651086,-500.0,0.0002279,2]
[311511712,1705170651096,-304.29,0.0002279,2]
[311511713,1705170651107,-13367.11629262,0.00022791,2]
[311511714,1705170651117,-562.64,0.00022793,2]
[311511715,1705170651127,-200.0,0.00022795,2]
[311511716,1705170651136,-200.0,0.00022797,2]
[311511717,1705170651146,-500.0,0.00022798,2]
[311511718,1705170651156,-500.0,0.00022798,2]
[311511719,1705170651167,-200.0,0.00022798,2]
[311511720,1705170651177,-200.0,0.00022799,2]
[311511721,1705170651187,-800.0,0.00022799,2]
[311511722,1705170651198,-200.0,0.00022799,2]
[311511723,1705170651208,-353.137561,0.00022799,2]
[311511724,1705170651217,-353.137561,0.00022799,2]
[311511725,1705170651227,-500.0,0.00022799,2]
[311511726,1705170651238,-500.0,0.00022799,2]
[311511727,1705170651249,-500.0,0.00022799,2]
[311511728,1705170651260,-500.0,0.00022799,2]
[311511729,1705170651271,-1344.66,0.00022799,2]
[311511730,1705170651281,-1344.66,0.00022799,2]
[311511731,1705170651291,-568.64,0.00022799,2]
[311511732,1705170651303,-568.64,0.00022799,2]
[311511733,1705170651315,-501.66,0.00022799,2]
[311511734,1705170651325,-501.66,0.00022799,2]
[311511735,1705170651336,-997.96,0.00022799,2]
[311511736,1705170651346,-997.96,0.00022799,2]
[311511737,1705170651355,-937.95,0.00022799,2]
[311511738,1705170651364,-937.95,0.00022799,2]
[311511739,1705170651374,-937.95,0.00022799,2]
[311511740,1705170651383,-937.95,0.00022799,2]
[311511741,1705170651392,-937.95,0.00022799,2]
[311511742,1705170651402,-937.95,0.00022799,2]
[311511743,1705170651411,-938.05,0.00022799,2]
[311511744,1705170651421,-1476.88,0.00022799,2]
[311511745,1705170651430,-1476.88,0.00022799,2]
[311511746,1705170651440,-1476.88,0.00022799,2]
[311511747,1705170651449,-1476.88,0.00022799,2]
[311511748,1705170651459,-1476.88,0.00022799,2]
[311511749,1705170651468,-1476.88,0.00022799,2]
[311511750,1705170651477,-1477.08003057,0.00022799,2]
[311511751,1705170651487,-1896.68,0.00022799,2]
[311511752,1705170651497,-1896.68,0.00022799,2]
[311511753,1705170651508,-1896.68,0.00022799,2]
[311511754,1705170651520,-1896.68,0.00022799,2]
[311511755,1705170651530,-1896.68,0.00022799,2]
[311511756,1705170651541,-1896.68,0.00022799,2]
[311511757,1705170651551,-1896.7147594,0.00022799,2]
[311511758,1705170651561,-1054.96,0.00022799,2]
[311511759,1705170651572,-1054.96,0.00022799,2]
[311511760,1705170651582,-1054.96,0.00022799,2]
[311511761,1705170651593,-1054.96,0.00022799,2]
[311511762,1705170651603,-1054.96,0.00022799,2]
[311511763,1705170651613,-1054.96,0.00022799,2]
[311511764,1705170651624,-1055.18,0.00022799,2]
[311511765,1705170651634,-1083.79,0.00022799,2]
[311511766,1705170651644,-1083.79,0.00022799,2]
[311511767,1705170651654,-1083.79,0.00022799,2]
[311511768,1705170651664,-1083.79,0.00022799,2]
[311511769,1705170651674,-1083.79,0.00022799,2]
[311511770,1705170651750,-1083.79,0.00022799,2]
[311511771,1705170651769,-1083.87,0.00022799,2]
[311511772,1705170651791,-306.43,0.00022799,2]
[311511773,1705170651813,-500.0,0.00022799,2]
[311511774,1705170651834,-500.0,0.00022799,2]
[311511775,1705170651850,-393.27885695,0.00022799,2]
[311511776,1705170651859,-515.98,0.00022799,2]
[311511777,1705170651869,-515.98,0.00022799,2]
[311511778,1705170651879,-260.0,0.00022799,2]
[311511779,1705170651888,-661.16,0.00022799,2]
[311511780,1705170651899,-661.16,0.00022799,2]
[311511781,1705170651909,-661.16,0.00022799,2]
[311511782,1705170651919,-661.16,0.00022799,2]
[311511783,1705170651928,-661.16,0.00022799,2]
[311511784,1705170651937,-661.16,0.00022799,2]
[311511785,1705170651947,-200.0,0.00022799,2]
[311511786,1705170651957,-505167.17128526,0.000228,2]
[311511787,1705170651969,-155.0,0.000228,2]
[311511788,1705170651980,-353.137561,0.000228,2]
[311511789,1705170651990,-353.137561,0.000228,2]
[311511790,1705170652000,-150.0,0.00022806,2]
[311511791,1705170652010,-150.0,0.00022814,2]
[311511792,1705170652021,-13367.11629262,0.00022818,2]
[311511793,1705170652031,-150.0,0.00022835,2]
[311511794,1705170652041,-150.0,0.00022836,2]
[311511795,1705170652053,-176.13,0.00022838,2]
[311511796,1705170652063,-155.4,0.00022839,2]
[311511797,1705170652074,-151.02717831,0.00022839,2]
[311511798,1705170652084,-152.63,0.00022843,2]
[311511799,1705170652094,-151.75,0.00022844,2]
[311511800,1705170652103,-500.0,0.00022845,2]
[311511801,1705170652113,-13367.11629262,0.00022845,2]
[311511802,1705170652122,-8086.0,0.00022847,2]
[311511803,1705170652132,-2271.0,0.00022847,2]
[311511804,1705170652142,-7343.0,0.00022847,2]
[311511805,1705170652152,-2902.0,0.00022847,2]
[311511806,1705170652162,-4166.0,0.00022847,2]
[311511807,1705170652173,-5566.0,0.00022847,2]
[311511808,1705170652183,-4632.472,0.00022847,2]
[311511809,1705170652193,-19683.0,0.00022847,2]
[311511810,1705170652204,-1390.829,0.00022847,2]
[311511811,1705170652214,-307.04,0.00022847,2]
[311511812,1705170652225,-256.349,0.00022847,2]
[311511813,1705170652236,-1028.0,0.00022847,2]
[311511814,1705170652246,-1083.246,0.00022847,2]
[311511815,1705170652256,-1881.33,0.00022847,2]
[311511816,1705170652265,-449.0,0.00022847,2]
[311511817,1705170652274,-835.0,0.00022847,2]
[311511818,1705170652285,-1226.42,0.00022852,2]
[311511819,1705170652296,-150.0,0.00022852,2]
[311511820,1705170652306,-300.0,0.00022853,2]
[311511821,1705170652315,-150.0,0.00022857,2]
[311511822,1705170652325,-154.6,0.00022858,2]
[311511823,1705170652334,-1500.0,0.00022862,2]
[311511824,1705170652343,-150.0,0.0002287,2]
[311511825,1705170652354,-1344.66,0.00022872,2]
[311511826,1705170652364,-1344.66,0.00022872,2]
[311511827,1705170652374,-1344.66,0.00022872,2]
[311511828,1705170652384,-1344.66,0.00022872,2]
[311511829,1705170652395,-1344.84,0.00022872,2]
[311511830,1705170652405,-568.64,0.00022872,2]
[311511831,1705170652416,-568.64,0.00022872,2]
[311511832,1705170652426,-568.64,0.00022872,2]
[311511833,1705170652438,-568.64,0.00022872,2]
[311511834,1705170652450,-568.67,0.00022872,2]
[311511835,1705170652462,-501.66,0.00022872,2]
[311511836,1705170652473,-501.66,0.00022872,2]
[311511837,1705170652486,-501.66,0.00022872,2]
[311511838,1705170652496,-501.66,0.00022872,2]
[311511839,1705170652508,-501.82,0.00022872,2]
[311511840,1705170652518,-997.96,0.00022872,2]
[311511841,1705170652528,-997.96,0.00022872,2]
[311511842,1705170652538,-997.96,0.00022872,2]
[311511843,1705170652547,-997.96,0.00022872,2]
[311511844,1705170652558,-998.1,0.00022872,2]
[311511845,1705170652567,-515.98,0.00022872,2]
[311511846,1705170652577,-515.98,0.00022872,2]
[311511847,1705170652586,-515.98,0.00022872,2]
[311511848,1705170652596,-515.98,0.00022872,2]
[311511849,1705170652605,-516.17481622,0.00022872,2]
[311511850,1705170652614,-13367.11629262,0.00022873,2]
[311511851,1705170652624,-150.0,0.00022877,2]
[311511852,1705170652633,-553.57761896,0.0002288,2]
[311511853,1705170652643,-155.19,0.00022881,2]
[311511854,1705170652652,-150.0,0.00022882,2]
[311511855,1705170652661,-271.48297066,0.00022886,2]
[311511856,1705170652670,-150.0,0.00022897,2]
[311511857,1705170652679,-13367.11629262,0.000229,2]
[311511858,1705170652688,-166.776333,0.000229,2]
[311511859,1705170652698,-286.43833932,0.000229,2]
[311511860,1705170652707,-161.83172394,0.000229,2]
[311511861,1705170652717,-1646.86032977,0.000229,2]
[311511862,1705170652726,-328.50830656,0.000229,2]
[311511863,1705170652735,-562.64,0.00022904,2]
[311511864,1705170652744,-150.0,0.00022915,2]
[311511865,1705170652753,-150.0,0.00022918,2]
[311511866,1705170652763,-163.75,0.00022922,2]
[311511867,1705170652772,-150.0,0.00022935,2]
[311511868,1705170652781,-150.0,0.00022936,2]
[311511869,1705170652791,-500.0,0.00022937,2]
[311511870,1705170652802,-418.09,0.00022937,2]
[311511871,1705170652811,-500.0,0.00022937,2]
[311511872,1705170652820,-554.677,0.00022938,2]
[311511873,1705170652829,-240.038,0.00022938,2]
[311511874,1705170652839,-494.879,0.00022938,2]
[311511875,1705170652848,-1931.0,0.00022938,2]
[311511876,1705170652857,-235.0,0.00022938,2]
[311511877,1705170652866,-510.186,0.00022938,2]
[311511878,1705170652875,-318.0,0.00022938,2]
[311511879,1705170652884,-879.0,0.00022938,2]
[311511880,1705170652894,-150.0,0.00022939,2]
[311511881,1705170652903,-150.0,0.0002294,2]
[311511882,1705170652913,-150.0,0.00022945,2]
[311511883,1705170652922,-1226.42,0.00022965,2]
[311511884,1705170652931,-1093.2292907,0.00022968,2]
[311511885,1705170652941,-46579.80913797,0.0002298,2]
[311511886,1705170652950,-353.137561,0.0002298,2]
[311511887,1705170652960,-353.137561,0.0002298,2]
[311511888,1705170652969,-51136.8005769,0.00022982,2]
[311511889,1705170652979,-3428.5649532,0.00022982,2]
[311511890,1705170652989,-88640.2342825,0.00022982,2]
[311511891,1705170652999,-300.02,0.00022983,2]
[311511892,1705170653009,-3293.04376977,0.00022983,2]
[311511893,1705170653020,-24816.8451814,0.00022983,2]
[311511894,1705170653031,-500.0,0.00022983,2]
[311511895,1705170653042,-500.0,0.00022983,2]
[311511896,1705170653054,-481.8486756,0.00022983,2]
[311511897,1705170653063,-481.5534438,0.00022983,2]
[311511898,1705170653074,-1185.7953622,0.00022983,2]
[311511899,1705170653083,-1680.98986515,0.00022983,2]
[311511900,1705170653094,-152.63,0.00022984,2]
[311511901,1705170653105,-60886.92416,0.00022984,2]
[311511902,1705170653116,-70637.0477431,0.00022984,2]
[311511903,1705170653126,-80387.1713263,0.00022984,2]
[311511904,1705170653136,-2000.0,0.00022984,2]
[311511905,1705170653147,-200.0,0.00022984,2]
[311511906,1705170653156,-4093.1039085,0.00022984,2]
[311511907,1705170653165,-4757.6428638,0.00022984,2]
[311511908,1705170653174,-5422.1818191,0.00022984,2]
[311511909,1705170653183,-77284.2586452,0.00022984,2]
[311511910,1705170653193,-65928.283008,0.00022984,2]
[311511911,1705170653203,-54572.3073707,0.00022984,2]
[311511912,1705170653213,-21637.4820902,0.00022984,2]
[311511913,1705170653222,-18458.118999,0.00022984,2]
[311511914,1705170653232,-15278.7559078,0.00022984,2]
[311511915,1705170653241,-578.9429952,0.00022984,2]
[311511916,1705170653253,-676.0373147,0.00022984,2]
[311511917,1705170653263,-773.1316343,0.00022984,2]
[311511918,1705170653274,-578.5882731,0.00022984,2]
[311511919,1705170653283,-675.6231024,0.00022984,2]
[311511920,1705170653295,-772.6579317,0.00022984,2]
[311511921,1705170653306,-1397.900003,0.00022984,2]
[311511922,1705170653316,-1610.0046438,0.00022984,2]
[311511923,1705170653327,-1822.1092845,0.00022984,2]
[311511924,1705170653338,-353.137561,0.00022984,2]
[311511925,1705170653349,-353.137561,0.00022984,2]
[311511926,1705170653361,-150.0,0.00022987,2]
[311511927,1705170653371,-150.0,0.0002299,2]
[311511928,1705170653381,-1680.98986515,0.00022991,2]
[311511929,1705170653390,-380.77,0.00022992,2]
[311511930,1705170653399,-155.4,0.00022992,2]
[311511931,1705170653408,-150.0,0.00022994,2]
[311511932,1705170653417,-254.5523337,0.00022999,2]
[311511933,1705170653427,-500.0,0.00022999,2]
[311511934,1705170653436,-500.0,0.00022999,2]
[311511935,1705170653445,-500.0,0.00022999,2]
[311511936,1705170653455,-500.0,0.00022999,2]
[311511937,1705170653464,-500.0,0.00022999,2]
[311511938,1705170653473,-556.75,0.00022999,2]
[311511939,1705170653482,-150.0,0.00022999,2]
[311511940,1705170653491,-150.0,0.00022999,2]
[311511941,1705170653501,-150.0,0.00022999,2]
[311511942,1705170653510,-150.0,0.00022999,2]
[311511943,1705170653519,-150.0,0.00022999,2]
[311511944,1705170653529,-150.0,0.00022999,2]
[311511945,1705170653538,-150.0,0.00022999,2]
[311511946,1705170653549,-150.0,0.00022999,2]
[311511947,1705170653558,-150.0,0.00022999,2]
[311511948,1705170653568,-150.0,0.00022999,2]
[311511949,1705170653578,-150.0,0.00022999,2]
[311511950,1705170653587,-150.0,0.00022999,2]
[311511951,1705170653597,-150.0,0.00022999,2]
[311511952,1705170653607,-150.0,0.00022999,2]
[311511953,1705170653617,-150.0,0.00022999,2]
[311511954,1705170653627,-150.0,0.00022999,2]
[311511955,1705170653636,-2807501.43432423,0.00023,2]
[311511956,1705170653655,-46964.28773393,0.00023,2]
[311511957,1705170653667,-1638.49718638,0.00023,2]
[311511958,1705170653679,-2269.01200623,0.00023,2]
[311511959,1705170653690,-825.28,0.00023,2]
[311511960,1705170653703,-756.131,0.00023,2]
[311511961,1705170653715,-315.6,0.00023,2]
[311511962,1705170653726,-918.92275125,0.00023,2]
[311511963,1705170653738,-459.33057317,0.00023,2]
[311511964,1705170653750,-646.78408094,0.00023,2]
[311511965,1705170653761,-726.92,0.00023,2]
[311511966,1705170653773,-492.6875681,0.00023,2]
[311511967,1705170653788,-595.45137922,0.00023,2]
[311511968,1705170653813,-661.24,0.00022799,2]
[311511969,1705170653823,-258702.37057026,0.00023,2]
[311511970,1705170653835,-29226.05274577,0.00023,2]
[311511971,1705170653846,-47675.82837321,0.00023,2]
[311511972,1705170653858,-125018.80730754,0.00023,2]
[311511973,1705170653869,-220062.30498329,0.00023,2]
[311511974,1705170653881,-413123.55335082,0.00023,2]
[311511975,1705170653891,-294989.65251456,0.00023,2]
[311511976,1705170653903,-115616.44042222,0.00023,2]
[311511977,1705170653915,-2161.90689837,0.00023,2]
[311511978,1705170653926,-492.07859962,0.00023,2]
[311511979,1705170653937,-556.61007586,0.00023,2]
[311511980,1705170653990,-540423.50081596,0.00023,2]
[311511981,1705170654000,-2369220.45465159,0.00023,2]
[311511982,1705170654011,-75193.98026372,0.00023,2]
[311511983,1705170654021,-932.39338065,0.00023,2]
[311511984,1705170654031,-10306.470216,0.00023,2]
[311511985,1705170654041,-855.86394758,0.00023,2]
[311511986,1705170654051,-1641.56931934,0.00023,2]
[311511987,1705170654062,-219783.77310951,0.00023,2]
[311511988,1705170654075,-620.07290513,0.00023,2]
[311511989,1705170654086,-1915.4599066,0.00023,2]
[311511990,1705170654098,-2197.4250838,0.00023,2]
[311511991,1705170654110,-1035.15990903,0.00023,2]
[311511992,1705170654131,-533.49002856,0.00022193,2]
[311511993,1705170654140,-495.01092162,0.00023,2]
[311511994,1705170654156,-13441.21662406,0.00023,2]
[311511995,1705170654167,-19643.33469332,0.00023,2]
[311511996,1705170654179,-494.83239097,0.00023,2]
[311511997,1705170654190,-300.0,0.00023,2]
[311511998,1705170654211,-508.58444147,0.00023,2]
[311511999,1705170654288,-1214.57401784,0.00022192,2]
[311512000,1705170654300,-11355.15882762,0.00022192,2]
[311512001,1705170654309,-150.0,0.00022911,2]
[311512002,1705170654318,-150.0,0.00022969,2]
[311512003,1705170654327,-10189.42774819,0.00023,2]
[311512004,1705170654345,-2862.92671332,0.00023,2]
[311512005,1705170654356,-511.78804803,0.00023,2]
[311512006,1705170654459,-500.0,0.00022193,2]
[311512007,1705170654468,-197.83972358,0.00022193,2]
[311512008,1705170654480,-302.16027642,0.00022193,2]
[311512009,1705170654489,-13779.43674252,0.00023,2]
[311512010,1705170654528,-463.84499955,0.00023,2]
[311512011,1705170654540,-428.12,0.00023,2]
[311512012,1705170654858,560.68,0.00021744,2]
[311512013,1705170655145,3335.6662,0.00022093,2]
[311512014,1705170667389,551.99868821,0.0002116,2]
[311512015,1705170677691,443.05,0.0002019,2]
[311512016,1705170695129,245000.0,0.00022093,2]
[311512017,1705170708262,715.6235,0.00022093,2]
[311512018,1705170718687,55555.0,0.00022093,2]
[311512019,1705170722494,38578.4385,0.00022093,2]
[311512020,1705170732157,315.1542351,0.00022092,2]
[311512021,1705170740958,183.88728252,0.00020693,2]
[311512022,1705170748614,178.45171996,0.00021968,2]
[311512023,1705170749688,1262.4134,0.00022092,2]
[311512024,1705170750904,100000.0,0.00022093,2]
[311512025,1705170770420,12582.23758142,0.00022093,2]
[311512026,1705170771972,254.5523337,0.00022093,2]
[311512027,1705170775334,269.89826797,0.00022093,2]
[311512028,1705170792401,151.0,0.00023,7]
[311512029,1705170821561,200.0,0.00021918,2]
[311512030,1705170838967,10000.0,0.00021918,2]
[311512031,1705170852522,3183.27,0.0002161,2]
[311512032,1705170853558,3985.5203,0.00022091,2]
[311512033,1705170854948,1250.0,0.00022,3]
[311512034,1705170876919,154.1,0.00021759,2]
[311512035,1705170877142,154.1,0.00021947,2]
[311512060,1705170907056,469.54298582,0.00022088,2]
[311512061,1705170934616,176.13,0.000218,2]
[311512064,1705170972448,156.09353827,0.00022189,7]
[311512065,1705170973537,500.0,0.000218,2]
[311512067,1705170975024,262.31,0.00021439,2]
[311512068,1705170975241,262.31,0.00021651,2]
[311512069,1705170975434,262.31,0.00021864,2]
[311512070,1705170975633,262.31,0.00022076,2]
[311512081,1705170987336,1167.58377423,0.00022091,2]
[311512082,1705170988441,155.0,0.00022189,7]
[311512083,1705170998440,842.15,0.00021206,2]
[311512084,1705170998826,842.15,0.00021318,2]
[311512085,1705170999030,842.15,0.0002143,2]
[311512086,1705170999229,842.15,0.00021541,2]
[311512087,1705170999477,842.15,0.00021653,2]
[311512088,1705170999698,842.15,0.00021765,2]
[311512089,1705170999896,842.15,0.00021876,2]
[311512090,1705171000100,842.15,0.00021988,2]
[311512091,1705171000661,842.15,0.00022099,2]
[311512092,1705171016451,156.08584481,0.00022189,7]
[311512105,1705171079156,335.4976012,0.00022091,2]
[311512106,1705171105556,14789.1868,0.00022091,2]
[311512107,1705171115772,7633.8898,0.00022091,2]
[311512108,1705171125123,200.0,0.00021918,2]
[311512109,1705171141696,551.45,0.00021186,2]
[311512110,1705171146565,259.93235909,0.00021185,2]
[311512111,1705171146668,363.73959203,0.00021185,2]
[311512112,1705171166968,151.02717831,0.000218,2]
[311512113,1705171173731,208.0,0.00021535,2]
[311512114,1705171175907,620.59,0.00019262,2]
[311512115,1705171176119,620.59,0.00021526,2]
[311512116,1705171187884,237.26198864,0.000218,2]
[311512118,1705171194219,336.80513274,0.00021799,2]
[311512119,1705171194694,155.0,0.00021799,2]
[311512120,1705171198700,1021.63580246,0.00022091,2]
[311512121,1705171204371,2097.85036998,0.00022,2]
[311512122,1705171212284,16435.75,0.000221,2]
[311512123,1705171212737,81602.72,0.000221,2]
[311512124,1705171216448,212.74977871,0.00022099,2]
[311512125,1705171218935,16750.41488075,0.00022099,2]
[311512126,1705171219317,4622.10943873,0.00022099,2]
[311512127,1705171225841,240.457572,0.00022997,7]
[311512128,1705171226422,528.7973276,0.00022099,2]
[311512129,1705171226733,1579.75964328,0.00022099,2]
[311512130,1705171226911,270.5618931,0.00022099,2]
[311512131,1705171237980,220.20699802,0.00022099,2]
[311512132,1705171238128,199.03102424,0.00022099,2]
[311512133,1705171244839,515.09486573,0.00022099,2]
[311512134,1705171245757,155.0,0.00022099,2]
[311512135,1705171247851,244.696851,0.00022099,2]
[311512136,1705171249198,524.69666688,0.00022099,2]
[311512137,1705171250363,158.51725912,0.00022099,2]
[311512138,1705171253487,3855.87847946,0.00022099,2]
[311512139,1705171256132,342.69783871,0.00022099,2]
[311512140,1705171258170,3002.2839626,0.00022099,2]
[311512141,1705171260422,155.0,0.00022099,2]
[311512142,1705171260655,155.0,0.00022099,2]
[311512143,1705171260862,155.0,0.00022099,2]
[311512144,1705171261384,155.0,0.00022099,2]
[311512145,1705171261802,2613.37807316,0.00022099,2]
[311512146,1705171265001,3930.60839298,0.00022099,2]
[311512147,1705171266199,155.0,0.00022099,2]
[311512148,1705171266830,155.0,0.00022099,2]
[311512149,1705171267128,196.55119395,0.00022099,2]
[311512150,1705171267350,511.54523166,0.00022099,2]
[311512151,1705171268967,472.81060698,0.00022099,2]
[311512152,1705171270878,1913.37819897,0.00022099,2]
[311512153,1705171271000,24437.6515,0.00022091,2]
[311512154,1705171271620,2135.69330062,0.00022099,2]
[311512155,1705171273413,501.00428049,0.00022099,2]
[311512156,1705171275876,337.29987385,0.00022099,2]
[311512157,1705171277203,155.0,0.00022099,2]
[311512158,1705171282800,155.0,0.00022099,2]
[311512159,1705171315950,154.1,0.00021343,2]
[311512160,1705171316185,154.1,0.00021621,2]
[311512161,1705171316596,154.1,0.00021899,2]
[311512162,1705171328050,2295.02704638,0.00022099,2]
[311512163,1705171330427,2899.08390333,0.00022099,2]
[311512164,1705171333358,155.0,0.00022099,2]
[311512165,1705171333391,155.0,0.00022099,2]
[311512166,1705171335969,376.86476321,0.00022099,2]
[311512167,1705171341968,3165.56,0.00021185,2]
[311512168,1705171352263,2137.45783782,0.00022099,2]
[311512169,1705171362985,1000.0,0.00022091,2]
[311512170,1705171363457,16750.41488075,0.00022099,2]
[311512171,1705171364252,155.0,0.00022099,2]
[311512172,1705171374611,397.52240638,0.00021886,2]
[311512173,1705171383794,210.0,0.00021535,2]
[311512174,1705171389395,155.59197994,0.00021997,2]
[311512176,1705171422047,276.07,0.00021165,2]
[311512177,1705171422422,276.07,0.00021276,2]
[311512178,1705171422660,276.07,0.00021388,2]
[311512179,1705171422856,276.07,0.00021499,2]
[311512180,1705171423243,276.07,0.0002161,2]
[311512181,1705171423464,276.07,0.00021722,2]
[311512182,1705171423685,276.07,0.00021833,2]
[311512183,1705171423948,276.07,0.00021945,2]
[311512184,1705171424163,276.07,0.00022056,2]
[311512185,1705171426416,155.0,0.00022099,2]
[311512186,1705171426864,2304.66109858,0.00022099,2]
[311512187,1705171427697,155.0,0.00022099,2]
[311512188,1705171429673,155.0,0.00022099,2]
[311512189,1705171429742,1043.02004607,0.00022099,2]
[311512190,1705171431794,196.75078774,0.00022099,2]